fUST/lending_fUST_20240824
["ID","MTS","AMOUNT","RATE_DAILY","PERIOD"]
[335816356,1724506261121,-1034.619663,0.00013699,2]
[335816357,1724506261131,-1034.619663,0.00013699,2]
[335816358,1724506261140,-1034.619663,0.00013699,2]
[335816359,1724506261149,-1034.619663,0.00013699,2]
[335816360,1724506261159,-1034.619663,0.00013699,2]
[335816361,1724506261168,-1034.619656,0.00013699,2]
[335816362,1724506261178,-150.112233,0.000137,2]
[335816363,1724506261189,-150.112233,0.000137,2]
[335816364,1724506261198,-150.112233,0.000137,2]
[335816365,1724506261208,-150.112233,0.000137,2]
[335816366,1724506261217,-226.169051,0.000137,2]
[335816367,1724506261226,-150.112233,0.000137,2]
[335816368,1724506261238,-173.5053,0.000137,2]
[335816369,1724506261248,-150.112233,0.000137,2]
[335816370,1724506261257,-150.112233,0.000137,2]
[335816371,1724506261266,-150.112233,0.000137,2]
[335816372,1724506261276,-150.112233,0.000137,2]
[335816373,1724506261285,-2112.81825,0.000137,2]
[335816374,1724506261294,-2112.81826,0.000137,2]
[335816375,1724506261303,-1591.917075,0.000137,2]
[335816376,1724506261312,-847.151823,0.000137,2]
[335816377,1724506261321,-156.621555,0.000137,2]
[335816378,1724506261330,-156.621564,0.000137,2]
[335816379,1724506261339,-847.15183027,0.000137,2]
[335816380,1724506261349,-151.0,0.000137,2]
[335816381,1724506261358,-682.195671,0.000137,2]
[335816382,1724506261368,-682.195665,0.000137,2]
[335816383,1724506261377,-155.0,0.0001373,2]
[335816384,1724506261387,-207.132532,0.00013781,2]
[335816385,1724506261396,-151.0,0.00013795,2]
[335816386,1724506261406,-207.7300879,0.000138,2]
[335816387,1724506261415,-151.919,0.00013808,2]
[335816388,1724506261424,-522.0,0.00013808,2]
[335816389,1724506261434,-18639.065,0.00013808,2]
[335816390,1724506261446,-1416.0,0.00013808,2]
[335816391,1724506261456,-600.0,0.00013819,2]
[335816392,1724506261465,-150.843,0.00013835,2]
[335816393,1724506261476,-150.305,0.00013835,2]
[335816394,1724506261487,-150.173,0.00013835,2]
[335816395,1724506261496,-262.127,0.00013835,2]
[335816396,1724506261505,-500.0,0.00013839,2]
[335816397,1724506261515,-3325.54729255,0.00013864,2]
[335816398,1724506261525,-600.0,0.00013961,2]
[335816399,1724506261534,-153.0,0.00013965,2]
[335816400,1724506261543,-556.502928,0.00013971,2]
[335816401,1724506261552,-556.502928,0.00013971,2]
[335816402,1724506261563,-500.0,0.00013972,2]
[335816403,1724506261573,-151.0,0.00013972,2]
[335816404,1724506261582,-151.0,0.00013972,2]
[335816405,1724506261592,-151.0,0.00013972,2]
[335816406,1724506261601,-151.0,0.00013972,2]
[335816407,1724506261610,-500.0,0.00013972,2]
[335816408,1724506261619,-504.53621322,0.00013972,2]
[335816409,1724506261628,-505.53699037,0.00013972,2]
[335816410,1724506261639,-500.0,0.00013972,2]
[335816411,1724506261648,-500.0,0.00013972,2]
[335816412,1724506261657,-500.0,0.00013972,2]
[335816413,1724506261666,-332.92760639,0.00013972,2]
[335816414,1724506261675,-500.0,0.00013972,2]
[335816415,1724506261686,-544.01843689,0.00013972,2]
[335816416,1724506261695,-501.33411364,0.00013972,2]
[335816417,1724506261704,-500.0,0.00013972,2]
[335816418,1724506261713,-511.56,0.00013972,2]
[335816419,1724506261723,-500.0,0.00013972,2]
[335816420,1724506261732,-151.982976,0.00013972,2]
[335816421,1724506261741,-151.982976,0.00013972,2]
[335816422,1724506261751,-151.982976,0.00013972,2]
[335816423,1724506261760,-725.6,0.00013972,2]
[335816424,1724506261769,-151.982976,0.00013972,2]
[335816425,1724506261779,-151.982976,0.00013972,2]
[335816426,1724506261788,-151.982974,0.00013972,2]
[335816427,1724506261798,-513.24810199,0.00013972,2]
[335816428,1724506261808,-596.18,0.00013972,2]
[335816429,1724506261817,-500.0,0.00013972,2]
[335816430,1724506261828,-500.0,0.00013972,2]
[335816431,1724506261838,-500.0,0.00013972,2]
[335816432,1724506261848,-948.25,0.00013972,2]
[335816433,1724506261858,-943.47,0.00013972,2]
[335816434,1724506261868,-404.08638448,0.00013972,2]
[335816435,1724506261878,-500.0,0.00013972,2]
[335816436,1724506261888,-500.0,0.00013972,2]
[335816437,1724506261899,-500.0,0.00013972,2]
[335816438,1724506261910,-500.0,0.00013972,2]
[335816439,1724506261920,-500.0,0.00013972,2]
[335816440,1724506261930,-500.0,0.00013972,2]
[335816441,1724506261940,-500.0,0.00013972,2]
[335816442,1724506261950,-500.0,0.00013972,2]
[335816443,1724506261961,-500.0,0.00013972,2]
[335816444,1724506261971,-500.0,0.00013972,2]
[335816445,1724506261981,-500.0,0.00013972,2]
[335816446,1724506261990,-640.71,0.00013972,2]
[335816447,1724506262000,-500.0,0.00013972,2]
[335816448,1724506262010,-1183.82568,0.00013972,2]
[335816449,1724506262020,-1183.82568,0.00013972,2]
[335816450,1724506262031,-1183.82568,0.00013972,2]
[335816451,1724506262043,-556.0,0.00013972,2]
[335816452,1724506262054,-1183.82568,0.00013972,2]
[335816453,1724506262064,-1183.82568,0.00013972,2]
[335816454,1724506262073,-1183.825681,0.00013972,2]
[335816455,1724506262082,-771.75,0.00013972,2]
[335816456,1724506262091,-500.0,0.00013972,2]
[335816457,1724506262100,-500.0,0.00013972,2]
[335816458,1724506262110,-500.0,0.00013972,2]
[335816459,1724506262119,-500.0,0.00013972,2]
[335816460,1724506262130,-500.0,0.00013972,2]
[335816461,1724506262141,-500.0,0.00013972,2]
[335816462,1724506262149,-857.71,0.00013972,2]
[335816463,1724506262159,-500.0,0.00013972,2]
[335816464,1724506262169,-500.0,0.00013972,2]
[335816465,1724506262178,-500.0,0.00013972,2]
[335816466,1724506262187,-500.0,0.00013972,2]
[335816467,1724506262197,-381.29143975,0.00013972,2]
[335816468,1724506262207,-500.0,0.00013972,2]
[335816469,1724506262217,-500.0,0.00013972,2]
[335816470,1724506262226,-150.0,0.00013972,2]
[335816471,1724506262236,-500.0,0.00013972,2]
[335816472,1724506262246,-500.0,0.00013972,2]
[335816473,1724506262257,-500.0,0.00013972,2]
[335816474,1724506262268,-583.62,0.00013972,2]
[335816475,1724506262277,-500.0,0.00013972,2]
[335816476,1724506262285,-500.0,0.00013972,2]
[335816477,1724506262295,-500.0,0.00013972,2]
[335816478,1724506262304,-808.92,0.00013972,2]
[335816479,1724506262314,-500.0,0.00013972,2]
[335816480,1724506262323,-500.0,0.00013972,2]
[335816481,1724506262333,-742.62,0.00013972,2]
[335816482,1724506262342,-500.0,0.00013972,2]
[335816483,1724506262352,-500.0,0.00013972,2]
[335816484,1724506262361,-500.0,0.00013972,2]
[335816485,1724506262371,-500.0,0.00013972,2]
[335816486,1724506262380,-151.0,0.00013972,2]
[335816487,1724506262391,-151.0,0.00013972,2]
[335816488,1724506262401,-151.0,0.00013972,2]
[335816489,1724506262410,-500.0,0.00013972,2]
[335816490,1724506262419,-179.379452,0.00013972,2]
[335816491,1724506262428,-1051.68,0.00013972,2]
[335816492,1724506262438,-556.502928,0.00013972,2]
[335816493,1724506262448,-556.502928,0.00013972,2]
[335816494,1724506262457,-500.0,0.00013972,2]
[335816495,1724506262466,-556.502928,0.00013972,2]
[335816496,1724506262476,-556.502926,0.00013972,2]
[335816497,1724506262489,-353.54851408,0.00013972,2]
[335816498,1724506262498,-500.0,0.00013972,2]
[335816499,1724506262507,-882.69,0.00013972,2]
[335816500,1724506262516,-625.27,0.00013972,2]
[335816501,1724506262526,-712.08,0.00013972,2]
[335816502,1724506262537,-500.95745786,0.00013972,2]
[335816503,1724506262546,-301.923361,0.00013972,2]
[335816504,1724506262555,-301.923361,0.00013972,2]
[335816505,1724506262566,-301.923361,0.00013972,2]
[335816506,1724506262576,-500.0,0.00013972,2]
[335816507,1724506262585,-500.0,0.00013972,2]
[335816508,1724506262595,-500.0,0.00013972,2]
[335816509,1724506262604,-301.923361,0.00013972,2]
[335816510,1724506262613,-301.923361,0.00013972,2]
[335816511,1724506262623,-301.923354,0.00013972,2]
[335816512,1724506262632,-500.0,0.00013972,2]
[335816513,1724506262642,-500.0,0.00013972,2]
[335816514,1724506262653,-500.0,0.00013972,2]
[335816515,1724506262663,-500.0,0.00013972,2]
[335816516,1724506262673,-671.1,0.00013972,2]
[335816517,1724506262682,-500.0,0.00013972,2]
[335816518,1724506262691,-500.0,0.00013972,2]
[335816519,1724506262701,-500.0,0.00013972,2]
[335816520,1724506262711,-500.0,0.00013972,2]
[335816521,1724506262720,-500.0,0.00013972,2]
[335816522,1724506262729,-746.55,0.00013972,2]
[335816523,1724506262739,-500.0,0.00013972,2]
[335816524,1724506262749,-500.0,0.00013972,2]
[335816525,1724506262763,-571.96554117,0.00013972,2]
[335816526,1724506262772,-500.0,0.00013972,2]
[335816527,1724506262781,-500.0,0.00013972,2]
[335816528,1724506262790,-590.07,0.00013972,2]
[335816529,1724506262800,-537.4,0.00013972,2]
[335816530,1724506262810,-500.0,0.00013972,2]
[335816531,1724506262819,-151.0,0.00013972,2]
[335816532,1724506262828,-151.0,0.00013972,2]
[335816533,1724506262837,-500.0,0.00013972,2]
[335816534,1724506262846,-500.0,0.00013972,2]
[335816535,1724506262856,-417.61929196,0.00013972,2]
[335816536,1724506262865,-882.98,0.00013972,2]
[335816537,1724506262875,-500.0,0.00013972,2]
[335816538,1724506262884,-500.0,0.00013972,2]
[335816539,1724506262894,-581.45,0.00013972,2]
[335816540,1724506262904,-500.0,0.00013972,2]
[335816541,1724506262913,-500.0,0.00013972,2]
[335816542,1724506262924,-500.0,0.00013972,2]
[335816543,1724506262934,-1546.1,0.00013972,2]
[335816544,1724506262943,-500.0,0.00013972,2]
[335816545,1724506262952,-500.0,0.00013972,2]
[335816546,1724506262961,-546.71,0.00013972,2]
[335816547,1724506262970,-544.29683689,0.00013972,2]
[335816548,1724506262979,-500.0,0.00013972,2]
[335816549,1724506262988,-561.59264497,0.00013972,2]
[335816550,1724506262998,-500.0,0.00013972,2]
[335816551,1724506263008,-500.0,0.00013972,2]
[335816552,1724506263017,-500.0,0.00013972,2]
[335816553,1724506263027,-502.95744415,0.00013972,2]
[335816554,1724506263037,-522.96,0.00013972,2]
[335816555,1724506263047,-577.6,0.00013972,2]
[335816556,1724506263057,-774.24,0.00013972,2]
[335816557,1724506263066,-500.0,0.00013972,2]
[335816558,1724506263076,-500.0,0.00013972,2]
[335816559,1724506263085,-600.1766045,0.00013972,2]
[335816560,1724506263095,-1082.88,0.00013972,2]
[335816561,1724506263105,-1219.03,0.00013972,2]
[335816562,1724506263115,-564.29,0.00013972,2]
[335816563,1724506263124,-500.0,0.00013972,2]
[335816564,1724506263135,-233.264086,0.00013972,2]
[335816565,1724506263144,-233.264086,0.00013972,2]
[335816566,1724506263156,-500.0,0.00013972,2]
[335816567,1724506263166,-500.0,0.00013972,2]
[335816568,1724506263175,-233.264086,0.00013972,2]
[335816569,1724506263184,-500.0,0.00013972,2]
[335816570,1724506263194,-233.264087,0.00013972,2]
[335816571,1724506263204,-500.0,0.00013972,2]
[335816572,1724506263213,-500.0,0.00013972,2]
[335816573,1724506263223,-393.31312517,0.00013972,2]
[335816574,1724506263232,-500.0,0.00013972,2]
[335816575,1724506263244,-281.44696078,0.00013972,2]
[335816576,1724506263255,-500.0,0.00013972,2]
[335816577,1724506263265,-884.32,0.00013972,2]
[335816578,1724506263274,-500.0,0.00013972,2]
[335816579,1724506263284,-500.0,0.00013972,2]
[335816580,1724506263294,-500.0,0.00013972,2]
[335816581,1724506263304,-500.0,0.00013972,2]
[335816582,1724506263313,-500.0,0.00013972,2]
[335816583,1724506263324,-500.0,0.00013972,2]
[335816584,1724506263335,-500.0,0.00013972,2]
[335816585,1724506263345,-500.0,0.00013972,2]
[335816586,1724506263354,-500.0,0.00013972,2]
[335816587,1724506263365,-500.0,0.00013972,2]
[335816588,1724506263375,-713.39,0.00013972,2]
[335816589,1724506263384,-502.7374095,0.00013972,2]
[335816590,1724506263395,-933.8,0.00013972,2]
[335816591,1724506263405,-500.0,0.00013972,2]
[335816592,1724506263415,-734.98,0.00013972,2]
[335816593,1724506263425,-500.0,0.00013972,2]
[335816594,1724506263435,-500.0,0.00013972,2]
[335816595,1724506263445,-500.0,0.00013972,2]
[335816596,1724506263455,-500.0,0.00013972,2]
[335816597,1724506263464,-505.96,0.00013972,2]
[335816598,1724506263476,-500.0,0.00013972,2]
[335816599,1724506263487,-1755.97,0.00013972,2]
[335816600,1724506263497,-500.0,0.00013972,2]
[335816601,1724506263507,-500.0,0.00013972,2]
[335816602,1724506263516,-500.0,0.00013972,2]
[335816603,1724506263528,-500.0,0.00013972,2]
[335816604,1724506263537,-500.0,0.00013972,2]
[335816605,1724506263550,-1128.54,0.00013972,2]
[335816606,1724506263560,-286.16501,0.00013972,2]
[335816607,1724506263570,-286.16501,0.00013972,2]
[335816608,1724506263579,-500.0,0.00013972,2]
[335816609,1724506263589,-500.0,0.00013972,2]
[335816610,1724506263598,-151.0,0.00013972,2]
[335816611,1724506263607,-151.0,0.00013972,2]
[335816612,1724506263617,-286.16501,0.00013972,2]
[335816613,1724506263626,-794.42,0.00013972,2]
[335816614,1724506263636,-286.16500196,0.00013972,2]
[335816615,1724506263646,-500.0,0.00013972,2]
[335816616,1724506263791,-626.26,0.00013972,2]
[335816617,1724506263825,-500.0,0.00013972,2]
[335816618,1724506263834,-500.0,0.00013972,2]
[335816619,1724506263846,-500.0,0.00013972,2]
[335816620,1724506263856,-1232.98,0.00013972,2]
[335816621,1724506263866,-500.0,0.00013972,2]
[335816622,1724506263876,-500.0,0.00013972,2]
[335816623,1724506263885,-783.41,0.00013972,2]
[335816624,1724506263899,-151.0,0.00013972,2]
[335816625,1724506263909,-151.0,0.00013972,2]
[335816626,1724506263919,-2020.85,0.00013972,2]
[335816627,1724506263928,-579.2,0.00013972,2]
[335816628,1724506263938,-512.48,0.00013972,2]
[335816629,1724506263948,-816.09,0.00013972,2]
[335816630,1724506263958,-500.0,0.00013972,2]
[335816631,1724506263969,-500.0,0.00013972,2]
[335816632,1724506263979,-500.0,0.00013972,2]
[335816633,1724506263990,-500.0,0.00013972,2]
[335816634,1724506264000,-500.0,0.00013972,2]
[335816635,1724506264010,-500.0,0.00013972,2]
[335816636,1724506264021,-500.0,0.00013972,2]
[335816637,1724506264031,-770.59,0.00013972,2]
[335816638,1724506264041,-560.87,0.00013972,2]
[335816639,1724506264051,-500.0,0.00013972,2]
[335816640,1724506264061,-550.94,0.00013972,2]
[335816641,1724506264071,-711.67,0.00013972,2]
[335816642,1724506264081,-678.02,0.00013972,2]
[335816643,1724506264091,-500.0,0.00013972,2]
[335816644,1724506264101,-1283.0,0.00013972,2]
[335816645,1724506264111,-500.0,0.00013972,2]
[335816646,1724506264123,-500.0,0.00013972,2]
[335816647,1724506264133,-500.0,0.00013972,2]
[335816648,1724506264145,-1826.15,0.00013972,2]
[335816649,1724506264155,-500.0,0.00013972,2]
[335816650,1724506264165,-500.0,0.00013972,2]
[335816651,1724506264175,-500.0,0.00013972,2]
[335816652,1724506264185,-500.0,0.00013972,2]
[335816653,1724506264195,-506.58545164,0.00013972,2]
[335816654,1724506264204,-828.0,0.00013972,2]
[335816655,1724506264214,-500.0,0.00013972,2]
[335816656,1724506264224,-500.0,0.00013972,2]
[335816657,1724506264233,-500.0,0.00013972,2]
[335816658,1724506264245,-503.31442808,0.00013972,2]
[335816659,1724506264254,-500.0,0.00013972,2]
[335816660,1724506264264,-517.12,0.00013972,2]
[335816661,1724506264273,-699.69,0.00013972,2]
[335816662,1724506264283,-500.0,0.00013972,2]
[335816663,1724506264292,-500.0,0.00013972,2]
[335816664,1724506264302,-500.0,0.00013972,2]
[335816665,1724506264311,-743.91,0.00013972,2]
[335816666,1724506264321,-500.0,0.00013972,2]
[335816667,1724506264330,-500.0,0.00013972,2]
[335816668,1724506264339,-620.56,0.00013972,2]
[335816669,1724506264348,-500.0,0.00013972,2]
[335816670,1724506264358,-976.76,0.00013972,2]
[335816671,1724506264368,-554.94,0.00013972,2]
[335816672,1724506264378,-500.0,0.00013972,2]
[335816673,1724506264389,-500.0,0.00013972,2]
[335816674,1724506264398,-500.0,0.00013972,2]
[335816675,1724506264408,-612.44072845,0.00013972,2]
[335816676,1724506264418,-500.0,0.00013972,2]
[335816677,1724506264428,-880.94,0.00013972,2]
[335816678,1724506264437,-500.0,0.00013972,2]
[335816679,1724506264446,-500.0,0.00013972,2]
[335816680,1724506264455,-1499.0,0.00013972,2]
[335816681,1724506264465,-2785.75,0.00013972,2]
[335816682,1724506264477,-500.0,0.00013972,2]
[335816683,1724506264487,-500.0,0.00013972,2]
[335816684,1724506264496,-500.0,0.00013972,2]
[335816685,1724506264506,-2462.28,0.00013972,2]
[335816686,1724506264515,-500.0,0.00013972,2]
[335816687,1724506264525,-500.0,0.00013972,2]
[335816688,1724506264534,-500.0,0.00013972,2]
[335816689,1724506264544,-500.0,0.00013972,2]
[335816690,1724506264556,-500.0,0.00013972,2]
[335816691,1724506264566,-518.46,0.00013972,2]
[335816692,1724506264576,-500.0,0.00013972,2]
[335816693,1724506264586,-500.0,0.00013972,2]
[335816694,1724506264595,-500.0,0.00013972,2]
[335816695,1724506264605,-500.0,0.00013972,2]
[335816696,1724506264615,-500.0,0.00013972,2]
[335816697,1724506264625,-151.0,0.00013972,2]
[335816698,1724506264634,-844.78,0.00013972,2]
[335816699,1724506264647,-702.68,0.00013972,2]
[335816700,1724506264655,-500.0,0.00013972,2]
[335816701,1724506264665,-500.0,0.00013972,2]
[335816702,1724506264675,-503.73193649,0.00013972,2]
[335816703,1724506264684,-500.0,0.00013972,2]
[335816704,1724506264694,-500.0,0.00013972,2]
[335816705,1724506264703,-1246.98,0.00013972,2]
[335816706,1724506264713,-651.46,0.00013972,2]
[335816707,1724506264723,-500.0,0.00013972,2]
[335816708,1724506264732,-500.89536007,0.00013972,2]
[335816709,1724506264742,-197.499054,0.00013972,2]
[335816710,1724506264751,-197.49906,0.00013972,2]
[335816711,1724506264760,-500.0,0.00013972,2]
[335816712,1724506264770,-500.0,0.00013972,2]
[335816713,1724506264780,-692.51,0.00013972,2]
[335816714,1724506264789,-510.54,0.00013972,2]
[335816715,1724506264798,-504.04700606,0.00013972,2]
[335816716,1724506264808,-500.0,0.00013972,2]
[335816717,1724506264818,-501.11184243,0.00013972,2]
[335816718,1724506264827,-508.77,0.00013972,2]
[335816719,1724506264836,-500.0,0.00013972,2]
[335816720,1724506264846,-892.83,0.00013972,2]
[335816721,1724506264856,-500.0,0.00013972,2]
[335816722,1724506264866,-500.0,0.00013972,2]
[335816723,1724506264876,-500.0,0.00013972,2]
[335816724,1724506264885,-1206.61,0.00013972,2]
[335816725,1724506264896,-500.0,0.00013972,2]
[335816726,1724506264906,-2707.52,0.00013972,2]
[335816727,1724506264915,-502.23568228,0.00013972,2]
[335816728,1724506264924,-500.0,0.00013972,2]
[335816729,1724506264933,-669.46,0.00013972,2]
[335816730,1724506264942,-500.0,0.00013972,2]
[335816731,1724506264952,-500.0,0.00013972,2]
[335816732,1724506264961,-680.41,0.00013972,2]
[335816733,1724506264970,-2094.21,0.00013972,2]
[335816734,1724506264979,-500.0,0.00013972,2]
[335816735,1724506264988,-1369.96,0.00013972,2]
[335816736,1724506264997,-1371.4,0.00013972,2]
[335816737,1724506265007,-500.0,0.00013972,2]
[335816738,1724506265016,-500.0,0.00013972,2]
[335816739,1724506265025,-500.0,0.00013972,2]
[335816740,1724506265035,-1621.94,0.00013972,2]
[335816741,1724506265044,-500.0,0.00013972,2]
[335816742,1724506265053,-500.0,0.00013972,2]
[335816743,1724506265063,-500.0,0.00013972,2]
[335816744,1724506265072,-979.92,0.00013972,2]
[335816745,1724506265082,-1930.64,0.00013972,2]
[335816746,1724506265091,-724.3,0.00013972,2]
[335816747,1724506265101,-509.93673624,0.00013972,2]
[335816748,1724506265110,-500.0,0.00013972,2]
[335816749,1724506265119,-500.0,0.00013972,2]
[335816750,1724506265129,-500.0,0.00013972,2]
[335816751,1724506265138,-1285.05,0.00013972,2]
[335816752,1724506265157,-1298.61,0.00013972,2]
[335816753,1724506265166,-1157.53,0.00013972,2]
[335816754,1724506265176,-1382.45,0.00013972,2]
[335816755,1724506265186,-500.0,0.00013972,2]
[335816756,1724506265195,-1169.01,0.00013972,2]
[335816757,1724506265204,-500.0,0.00013972,2]
[335816758,1724506265213,-500.0,0.00013972,2]
[335816759,1724506265222,-1360.88,0.00013972,2]
[335816760,1724506265231,-500.0,0.00013972,2]
[335816761,1724506265242,-516.71,0.00013972,2]
[335816762,1724506265251,-500.0,0.00013972,2]
[335816763,1724506265261,-502.29850537,0.00013972,2]
[335816764,1724506265270,-942.71,0.00013972,2]
[335816765,1724506265280,-500.0,0.00013972,2]
[335816766,1724506265289,-500.0,0.00013972,2]
[335816767,1724506265298,-1444.38,0.00013972,2]
[335816768,1724506265307,-736.52,0.00013972,2]
[335816769,1724506265317,-500.0,0.00013972,2]
[335816770,1724506265326,-500.0,0.00013972,2]
[335816771,1724506265335,-1038.66,0.00013972,2]
[335816772,1724506265345,-1480.85,0.00013972,2]
[335816773,1724506265355,-500.0,0.00013972,2]
[335816774,1724506265365,-500.0,0.00013972,2]
[335816775,1724506265374,-500.0,0.00013972,2]
[335816776,1724506265383,-867.119958,0.00013972,2]
[335816777,1724506265393,-389.94915928,0.00013972,2]
[335816778,1724506265403,-500.0,0.00013972,2]
[335816779,1724506265412,-527.63769833,0.00013972,2]
[335816780,1724506265421,-677.94,0.00013972,2]
[335816781,1724506265431,-500.0,0.00013972,2]
[335816782,1724506265440,-500.0,0.00013972,2]
[335816783,1724506265450,-708.27,0.00013972,2]
[335816784,1724506265459,-500.0,0.00013972,2]
[335816785,1724506265468,-842.4,0.00013972,2]
[335816786,1724506265480,-1572.78,0.00013972,2]
[335816787,1724506265491,-500.0,0.00013972,2]
[335816788,1724506265501,-855.59,0.00013972,2]
[335816789,1724506265511,-500.0,0.00013972,2]
[335816790,1724506265523,-500.0,0.00013972,2]
[335816791,1724506265534,-1500.12,0.00013972,2]
[335816792,1724506265546,-500.0,0.00013972,2]
[335816793,1724506265558,-1508.43,0.00013972,2]
[335816794,1724506265570,-870.94,0.00013972,2]
[335816795,1724506265580,-727.18,0.00013972,2]
[335816796,1724506265589,-204.026499,0.00013972,2]
[335816797,1724506265598,-204.026499,0.00013972,2]
[335816798,1724506265609,-500.0,0.00013972,2]
[335816799,1724506265618,-1223.2,0.00013972,2]
[335816800,1724506265628,-500.0,0.00013972,2]
[335816801,1724506265638,-204.026499,0.00013972,2]
[335816802,1724506265647,-204.026498,0.00013972,2]
[335816803,1724506265657,-500.0,0.00013972,2]
[335816804,1724506265667,-500.0,0.00013972,2]
[335816805,1724506265676,-644.25,0.00013972,2]
[335816806,1724506265686,-504.06,0.00013972,2]
[335816807,1724506265696,-511.99630393,0.00013972,2]
[335816808,1724506265705,-1305.61,0.00013972,2]
[335816809,1724506265715,-500.0,0.00013972,2]
[335816810,1724506265725,-500.0,0.00013972,2]
[335816811,1724506265737,-500.0,0.00013972,2]
[335816812,1724506265747,-500.0,0.00013972,2]
[335816813,1724506265758,-500.0,0.00013972,2]
[335816814,1724506265768,-500.0,0.00013972,2]
[335816815,1724506265778,-500.0,0.00013972,2]
[335816816,1724506265788,-500.0,0.00013972,2]
[335816817,1724506265798,-1139.5,0.00013972,2]
[335816818,1724506265808,-500.0,0.00013972,2]
[335816819,1724506265818,-500.0,0.00013972,2]
[335816820,1724506265827,-500.0,0.00013972,2]
[335816821,1724506265837,-672.44,0.00013972,2]
[335816822,1724506265848,-500.0,0.00013972,2]
[335816823,1724506265858,-526.65,0.00013972,2]
[335816824,1724506265868,-714.74,0.00013972,2]
[335816825,1724506265878,-605.78,0.00013972,2]
[335816826,1724506265888,-500.0,0.00013972,2]
[335816827,1724506265898,-500.0,0.00013972,2]
[335816828,1724506265908,-1224.59,0.00013972,2]
[335816829,1724506265918,-1199.42,0.00013972,2]
[335816830,1724506265928,-1029.37,0.00013972,2]
[335816831,1724506265938,-500.0,0.00013972,2]
[335816832,1724506265949,-750.17,0.00013972,2]
[335816833,1724506265959,-774.99,0.00013972,2]
[335816834,1724506265969,-1524.4,0.00013972,2]
[335816835,1724506265977,-844.16,0.00013972,2]
[335816836,1724506265987,-500.0,0.00013972,2]
[335816837,1724506265997,-500.0,0.00013972,2]
[335816838,1724506266007,-1111.0,0.00013972,2]
[335816839,1724506266016,-564.49,0.00013972,2]
[335816840,1724506266025,-500.0,0.00013972,2]
[335816841,1724506266035,-502.33681626,0.00013972,2]
[335816842,1724506266046,-795.47,0.00013972,2]
[335816843,1724506266065,-689.1,0.00013972,2]
[335816844,1724506266075,-500.0,0.00013972,2]
[335816845,1724506266084,-1731.69,0.00013972,2]
[335816846,1724506266094,-823.81,0.00013972,2]
[335816847,1724506266105,-500.0,0.00013972,2]
[335816848,1724506266115,-500.0,0.00013972,2]
[335816849,1724506266127,-557.72,0.00013972,2]
[335816850,1724506266139,-503.18446818,0.00013972,2]
[335816851,1724506266151,-1800.6,0.00013972,2]
[335816852,1724506266160,-560.25,0.00013972,2]
[335816853,1724506266170,-500.0,0.00013972,2]
[335816854,1724506266179,-2036.61,0.00013972,2]
[335816855,1724506266189,-500.0,0.00013972,2]